bitfinex/quotes_SOLUSD_20250619
["timestamp","ask_amount","ask_price","bid_price","bid_amount"]
[1750340889165,19.41495307,144.47,144.45,6.92281066]
[1750340889984,45.41495307,144.46,144.44,6.92311759]
[1750340890278,19.41495307,144.45,144.44,6.92311759]
[1750340890986,19.41495307,144.45,144.42,24.2348705]
[1750340892067,26.0,144.46,144.42,43.64982357]
[1750340892284,26.0,144.46,144.43,19.41495307]
[1750340892987,26.0,144.46,144.44,6.92328994]
[1750340893191,31.23337851,144.48,144.44,43.64646787]
[1750340893369,57.23337851,144.48,144.44,43.64646787]
[1750340893690,57.23337851,144.48,144.44,24.2315148]
[1750340893869,19.41495307,144.47,144.44,24.2315148]
[1750340894193,37.81842544,144.48,144.44,24.2315148]
[1750340894365,19.41495307,144.47,144.44,24.2315148]
[1750340894759,37.81842544,144.48,144.44,24.2315148]
[1750340894995,19.41495307,144.47,144.44,24.2315148]
[1750340895387,19.41495307,144.46,144.44,24.2315148]
[1750340895584,37.81842544,144.48,144.44,24.2315148]
[1750340895777,19.41495307,144.47,144.44,24.2315148]
[1750340896287,37.81842544,144.48,144.44,24.2315148]
[1750340896664,37.81842544,144.48,144.44,43.64646787]
[1750340896886,26.0,144.48,144.47,6.92185228]
[1750340897080,19.41495307,144.5,144.47,6.92185228]
[1750340897482,45.41495307,144.5,144.47,6.92185228]
[1750340897675,19.41495307,144.49,144.47,6.92185228]
[1750340898087,26.0,144.5,144.47,6.92185228]
[1750340898304,19.41495307,144.49,144.47,6.92185228]
[1750340898989,26.0,144.5,144.47,19.41495307]
[1750340899489,19.41495307,144.52,144.47,19.41495307]
[1750340899708,19.41495307,144.52,144.48,19.41495307]
[1750340899709,45.41495307,144.52,144.48,19.41495307]
[1750340900611,19.41495307,144.5,144.46,25.83855368]
[1750340900905,19.41495307,144.49,144.46,17.30492224]
[1750340901074,19.41495307,144.48,144.46,17.30492224]
[1750340901476,19.41495307,144.47,144.46,17.30492224]
[1750340902564,19.41495307,144.48,144.46,17.30492224]
[1750340904498,19.41495307,144.48,144.46,16.30492224]
[1750340905411,26.0,144.5,144.46,16.30492224]
[1750340905696,19.41495307,144.48,144.46,16.30492224]
[1750340905873,19.41495307,144.47,144.46,16.30492224]
[1750340906982,11.32748506,144.47,144.46,16.30492224]
[1750340907311,41.53,144.53,144.46,27.6324073]
[1750340907523,11.32748506,144.5,144.46,27.6324073]
[1750340908005,11.32748506,144.5,144.46,16.30492224]
[1750340908173,26.0,144.51,144.46,16.30492224]
[1750340908369,11.32748506,144.49,144.46,16.30492224]
[1750340908792,26.0,144.51,144.46,16.30492224]
[1750340909004,19.41286648,144.5,144.46,35.71778872]
[1750340909518,26.0,144.51,144.46,16.30492224]
[1750340909671,19.41286648,144.47,144.45,6.92281066]
[1750340911290,19.41286648,144.46,144.45,6.92281066]
[1750340913176,26.0,144.49,144.45,6.92281066]
[1750340913407,26.0,144.48,144.45,6.92281066]
[1750340913581,19.41286648,144.47,144.45,6.92281066]
[1750340914191,26.0,144.48,144.45,6.92281066]
[1750340914500,19.41286648,144.46,144.45,6.92281066]
[1750340914801,26.0,144.48,144.45,6.92281066]
[1750340914979,19.41286648,144.46,144.45,6.92281066]
[1750340916395,26.0,144.48,144.44,13.10310648]
[1750340916589,19.41286648,144.45,144.44,13.10310648]
[1750340916790,26.0,144.47,144.44,13.10310648]
[1750340917083,19.41286648,144.46,144.44,13.10310648]
[1750340918998,19.41286648,144.46,144.44,6.92310648]
[1750340920495,19.41286648,144.43,144.41,6.9247282]
[1750340921012,19.41286648,144.44,144.41,6.9247282]
[1750340921316,19.41286648,144.43,144.41,6.9247282]
[1750340923506,19.41286648,144.44,144.41,6.9247282]
[1750340924511,19.41286648,144.43,144.41,6.9247282]
[1750340925702,19.41286648,144.42,144.4,7.10515409]
[1750340925924,19.41286648,144.41,144.4,0.18]
[1750340927231,26.33759468,144.41,144.4,0.18]
[1750340927409,27.87039468,144.41,144.39,4.06467545]
[1750340927607,26.0,144.37,144.32,19.70746081]
[1750340927806,19.41286648,144.34,144.32,19.70746081]
[1750340928010,19.41286648,144.33,144.32,19.70746081]
[1750340928370,6.0919,144.36,144.32,19.70746081]
[1750340928494,19.41286648,144.34,144.32,26.63636367]
[1750340928694,19.41286648,144.33,144.32,19.70746081]
[1750340929219,45.41286648,144.36,144.32,19.70746081]
[1750340929425,19.41286648,144.33,144.32,19.70746081]
[1750340929631,19.41286648,144.33,144.28,23.56638733]
[1750340930129,19.41286648,144.29,144.28,13.17081502]
[1750340930319,26.0,144.31,144.28,6.93081502]
[1750340930714,19.41286648,144.29,144.28,6.93081502]
[1750340930919,26.0,144.31,144.28,6.93081502]
[1750340931112,19.41286648,144.29,144.27,6.93144797]
[1750340931326,19.41286648,144.28,144.27,6.93144797]
[1750340931829,19.41286648,144.28,144.24,1.4678937]
[1750340932027,19.41286648,144.25,144.24,8.40078332]
[1750340933029,54.76,144.3,144.24,8.40078332]
[1750340933630,19.41286648,144.25,144.24,8.40078332]
[1750340935029,44.36271534,144.25,144.24,1.4678937]
[1750340935219,26.0,144.21,144.17,0.1]
[1750340935419,26.0,144.22,144.17,0.1]
[1750340935420,64.82573296,144.18,144.17,0.1]
[1750340935731,64.82573296,144.18,144.16,4.06467545]
[1750340935933,19.41286648,144.17,144.16,4.06467545]
[1750340936412,26.0,144.17,144.16,4.06467545]
[1750340936818,45.41286648,144.17,144.16,4.06467545]
[1750340937019,26.0,144.17,144.16,4.06467545]
[1750340937217,6.3002,144.25,144.16,4.06467545]
[1750340937421,19.41286648,144.17,144.16,4.06467545]
[1750340937827,45.41286648,144.17,144.16,4.06467545]
[1750340938316,66.88251534,144.17,144.16,4.06467545]
[1750340938519,26.0,144.14,144.07,6.94107031]
[1750340939416,26.0,144.13,144.07,26.35393679]
[1750340939615,19.41286648,144.1,144.07,6.94107031]
[1750340940019,26.0,144.13,144.07,6.94107031]
[1750340940218,45.41286648,144.1,144.05,6.94203401]
[1750340940446,19.41286648,144.08,144.05,6.94203401]
[1750340940614,45.41286648,144.1,144.05,24.29711904]
[1750340940819,19.41286648,144.13,144.09,19.41286648]
[1750340941114,19.41286648,144.13,144.06,18.64964886]
[1750340941338,19.41286648,144.13,144.09,18.64964886]
[1750340941543,6.1769,144.21,144.11,18.64964886]
[1750340941747,26.0,144.18,144.13,19.41286648]
[1750340942046,19.41286648,144.17,144.1,6.24]
[1750340942229,19.41286648,144.17,144.13,19.41286648]
[1750340942430,45.41286648,144.17,144.13,19.41286648]
[1750340942639,6.1769,144.21,144.15,19.41286648]
[1750340942838,19.41286648,144.21,144.17,19.41286648]
[1750340943014,19.41286648,144.21,144.16,6.24]
[1750340943220,19.41286648,144.2,144.17,6.9362558]
[1750340943525,19.41286648,144.2,144.17,24.27689532]
[1750340943727,26.0,144.23,144.17,24.27689532]
[1750340943938,19.41286648,144.2,144.17,6.9362558]
[1750340944425,19.41286648,144.2,144.16,25.65286648]
[1750340944426,19.41286648,144.18,144.16,13.17658501]
[1750340944628,90.93543513,144.26,144.16,6.24]
[1750340944829,19.41286648,144.17,144.12,1.5114]
[1750340945052,19.41286648,144.16,144.13,6.93813828]
[1750340945263,26.0,144.21,144.11,6.5]
[1750340945264,19.41286648,144.15,144.11,6.5]
[1750340945556,188.19,144.23,144.11,6.5]
[1750340945557,19.41286648,144.13,144.11,6.5]
[1750340946053,19.41286648,144.14,144.11,6.5]
[1750340946233,19.41286648,144.18,144.11,6.5]
[1750340946436,26.0,144.22,144.12,18.64964886]
[1750340946646,19.41286648,144.17,144.11,30.78686291]
[1750340946863,19.41286648,144.16,144.11,50.19972939]
[1750340947151,19.41286648,144.15,144.11,50.19972939]
[1750340947352,19.41286648,144.16,144.11,50.19972939]
[1750340947559,19.41286648,144.15,144.11,50.19972939]
[1750340947917,19.41286648,144.13,144.11,6.93900364]
[1750340948123,32.5143,144.17,144.11,6.93900364]
[1750340948331,19.41286648,144.13,144.11,6.93900364]
[1750340948957,32.5143,144.17,144.11,6.93900364]
[1750340949159,19.41286648,144.15,144.11,19.41286648]
[1750340949323,32.5143,144.17,144.1,24.28868841]
[1750340949527,29.06,144.21,144.1,6.93962526]
[1750340949528,153.199,144.21,144.1,6.93962526]
[1750340949840,19.41286648,144.14,144.1,6.93962526]
[1750340950035,19.41286648,144.14,144.1,26.35249174]
[1750340950237,19.41286648,144.14,144.1,6.93962526]
[1750340950439,19.41286648,144.13,144.1,24.28868841]
[1750340951248,26.0,144.17,144.1,24.28868841]
[1750340951457,19.41286648,144.14,144.1,24.28868841]
[1750340951633,26.0,144.17,144.1,43.70155489]
[1750340951834,19.41286648,144.14,144.1,43.70155489]
[1750340952062,26.0,144.17,144.1,24.28868841]
[1750340952362,19.41286648,144.14,144.1,43.70155489]
[1750340952569,26.0,144.17,144.1,43.70155489]
[1750340952746,19.41286648,144.15,144.1,43.70155489]
[1750340952933,19.41286648,144.15,144.1,24.28868841]
[1750340953357,19.41286648,144.14,144.1,43.70155489]
[1750340953551,26.0,144.17,144.12,19.41286648]
[1750340953854,6.599,144.21,144.14,19.41286648]
[1750340954038,19.41286648,144.18,144.14,19.41286648]
[1750340954236,19.41286648,144.19,144.14,19.41286648]
[1750340954438,19.41286648,144.2,144.15,19.41286648]
[1750340954647,19.41286648,144.2,144.16,6.93673695]
[1750340954853,6.599,144.21,144.16,6.93673695]
[1750340955056,19.41286648,144.19,144.16,6.93673695]
[1750340955247,19.41286648,144.19,144.16,24.27857934]
[1750340955864,6.599,144.21,144.16,24.27857934]
[1750340956160,19.41286648,144.18,144.16,24.27857934]
[1750340956560,6.599,144.21,144.16,24.27857934]
[1750340956764,6.599,144.21,144.15,19.41286648]
[1750340956765,19.41286648,144.19,144.15,19.41286648]
[1750340957457,19.41286648,144.19,144.12,18.64964886]
[1750340957758,19.41286648,144.18,144.12,18.64964886]
[1750340957944,32.93348274,144.23,144.11,58.98272151]
[1750340958150,19.41286648,144.18,144.12,18.64964886]
[1750340958654,19.41286648,144.18,144.14,19.41286648]
[1750340958858,19.41286648,144.15,144.13,6.9381808]
[1750340959065,19.41286648,144.14,144.11,6.9391437]
[1750340959265,19.41286648,144.13,144.11,6.9391437]
[1750340960265,19.41286648,144.12,144.11,6.9391437]
[1750340960560,19.41286648,144.12,144.1,6.93962526]
[1750340961350,26.0,144.15,144.1,6.93962526]
[1750340961548,19.41286648,144.13,144.1,6.93962526]
[1750340961961,19.41286648,144.13,144.1,24.28868841]
[1750340963065,26.0,144.16,144.12,19.41286648]
[1750340963066,19.41286648,144.16,144.12,19.41286648]
[1750340963272,50.05597031,144.23,144.1,24.28868841]
[1750340963566,19.41286648,144.15,144.1,43.70155489]
[1750340964248,19.41286648,144.14,144.1,24.28868841]
[1750340964443,19.41286648,144.14,144.1,43.70155489]
[1750340964662,19.41286648,144.15,144.11,19.41286648]
[1750340964867,26.0,144.18,144.13,19.41286648]
[1750340965078,45.41286648,144.18,144.14,19.41286648]
[1750340965446,19.41286648,144.17,144.13,19.41286648]
[1750340965898,19.41286648,144.17,144.11,18.64964886]
[1750340966055,26.0,144.2,144.13,19.41286648]
[1750340966254,19.41286648,144.17,144.13,19.41286648]
[1750340967051,19.41286648,144.17,144.14,24.28194809]
[1750340967678,19.41286648,144.17,144.14,43.69481457]
[1750340967973,19.41286648,144.18,144.14,43.69481457]
[1750340968360,19.41286648,144.18,144.14,24.28194809]
[1750340968563,19.41286648,144.17,144.14,24.28194809]
[1750340969069,19.41286648,144.18,144.14,24.28194809]
[1750340969279,19.41286648,144.18,144.14,43.69481457]
[1750340969453,19.41286648,144.19,144.14,43.69481457]
[1750340970049,19.41286648,144.19,144.15,19.41286648]
[1750340970754,69.1226,144.23,144.15,19.41286648]
[1750340970966,19.41286648,144.19,144.15,19.41286648]
[1750340971365,69.1226,144.23,144.16,6.93673695]
[1750340971559,19.41286648,144.19,144.16,6.93673695]
[1750340971754,19.41286648,144.18,144.16,6.93673695]
[1750340973476,19.41286648,144.18,144.15,6.93721817]
[1750340973663,50.05617323,144.23,144.15,6.93721817]
[1750340973854,19.41286648,144.17,144.15,24.2802636]
[1750340974176,19.41286648,144.18,144.15,24.2802636]
[1750340974758,19.41286648,144.18,144.15,17.34304543]
[1750340976351,19.41286648,144.18,144.12,24.28531778]
[1750340976686,19.41286648,144.18,144.12,6.93866222]
[1750340976687,19.41286648,144.13,144.12,6.93866222]
[1750340977178,19.41286648,144.13,144.09,6.54]
[1750340977374,19.41286648,144.12,144.09,6.54]
[1750340977879,19.41286648,144.13,144.1,24.28868841]
[1750340978657,6.1578,144.17,144.11,19.41286648]
[1750340978856,19.41286648,144.16,144.12,19.41286648]
[1750340979288,19.41286648,144.17,144.12,19.41286648]
[1750340979781,19.41286648,144.16,144.12,19.41286648]
[1750340980581,19.41286648,144.16,144.13,6.9381808]
[1750340980957,19.41286648,144.16,144.13,24.28363282]
[1750340981160,19.41286648,144.17,144.13,43.6964993]
[1750340981564,19.41286648,144.16,144.13,24.28363282]
[1750340981861,19.41286648,144.17,144.13,43.6964993]
[1750340982265,19.41286648,144.18,144.13,24.28363282]
[1750340982485,19.41286648,144.18,144.14,19.41286648]
[1750340982682,47.7929,144.21,144.15,24.2802636]
[1750340982861,19.41286648,144.19,144.15,24.2802636]
[1750340983262,19.41286648,144.2,144.15,43.69313008]
[1750340984081,19.41286648,144.19,144.15,43.69313008]
[1750340984389,26.0,144.21,144.15,24.2802636]
[1750340984588,19.41286648,144.19,144.15,43.69313008]
[1750340984788,19.41286648,144.2,144.16,19.41286648]
[1750340986769,6.64034416,144.23,144.15,43.69313008]
[1750340986991,19.41286648,144.2,144.15,43.69313008]
[1750340987289,19.41286648,144.19,144.15,43.69313008]
[1750340987679,19.41286648,144.19,144.15,24.2802636]
[1750340987885,19.41286648,144.19,144.15,43.69313008]
[1750340989601,5.10608568,144.23,144.18,19.41286648]
[1750340989894,19.41286648,144.23,144.18,19.41286648]
[1750340990096,19.41286648,144.22,144.18,19.41286648]
[1750340990284,19.41286648,144.21,144.17,19.41286648]
[1750340990609,19.41286648,144.21,144.16,19.41286648]
[1750340990910,19.41286648,144.19,144.15,43.69313008]
[1750340991200,19.41286648,144.17,144.15,6.93721817]
[1750340991492,19.41286648,144.18,144.15,6.93721817]
[1750340991891,19.41286648,144.18,144.15,24.2802636]
[1750340992617,19.41286648,144.19,144.15,24.2802636]
[1750340993485,26.0,144.21,144.15,24.2802636]
[1750340993682,19.41286648,144.19,144.15,24.2802636]
[1750340993905,19.41286648,144.16,144.15,6.93721817]
[1750340994113,19.41286648,144.17,144.15,6.93721817]
[1750340994616,19.41286648,144.18,144.15,6.93721817]
[1750340994919,11.37382149,144.18,144.15,6.93721817]
[1750340995414,11.37382149,144.18,144.15,24.2802636]
[1750340996315,26.0,144.21,144.15,24.2802636]
[1750340996488,11.37382149,144.18,144.15,24.2802636]
[1750340996685,11.37382149,144.17,144.15,6.93721817]
[1750340997204,11.37382149,144.16,144.14,13.47764101]
[1750340997388,11.37382149,144.15,144.14,6.93764101]
[1750340998198,26.0,144.17,144.12,6.93866222]
[1750340998412,11.37382149,144.16,144.12,6.93866222]
[1750340998608,11.37382149,144.16,144.12,24.28531778]
[1750340998796,11.37382149,144.16,144.12,35.65913927]
[1750340999193,26.0,144.2,144.14,11.37382149]
[1750340999398,11.37382149,144.18,144.14,11.37382149]
[1750340999617,11.37382149,144.18,144.12,58.9786289]
[1750340999618,11.37382149,144.18,144.13,18.64964886]
[1750340999924,11.37382149,144.18,144.12,58.9786289]
[1750340999925,11.37382149,144.18,144.14,11.37382149]
[1750341000303,11.37382149,144.17,144.15,24.2802636]
[1750341000629,11.37382149,144.16,144.12,6.93866222]
[1750341000795,11.37382149,144.13,144.1,6.93962526]
[1750341000994,11.37382149,144.11,144.1,6.93962526]
[1750341001627,11.37382149,144.11,144.09,6.93994905]
[1750341001927,27.5081,144.15,144.09,6.93994905]
[1750341002097,11.37382149,144.11,144.09,6.93994905]
[1750341002295,11.37382149,144.13,144.09,11.37382149]
[1750341002800,19.50860754,144.14,144.1,19.50860754]
[1750341003022,19.50860754,144.15,144.06,47.76964886]
[1750341003203,19.50860754,144.14,144.1,19.50860754]
[1750341003406,6.1895,144.18,144.06,47.76964886]
[1750341003407,19.50860754,144.12,144.06,47.76964886]
[1750341003724,19.50860754,144.14,144.06,47.76964886]
[1750341004030,19.50860754,144.13,144.09,19.50860754]
[1750341004218,19.50860754,144.13,144.1,24.28868841]
[1750341004418,6.1895,144.18,144.11,19.50860754]
[1750341004599,19.50860754,144.16,144.12,19.50860754]
[1750341004927,19.50860754,144.18,144.14,19.50860754]
[1750341005225,6.5186,144.22,144.1,86.60543727]
[1750341005425,19.50860754,144.18,144.14,19.50860754]
[1750341005625,6.5186,144.22,144.16,19.50860754]
[1750341005810,16.20393398,144.25,144.11,28.64964886]
[1750341006122,42.20393398,144.25,144.17,19.50860754]
[1750341006304,19.50860754,144.21,144.16,19.50860754]
[1750341006504,19.50860754,144.19,144.14,24.28194809]
[1750341006816,19.50860754,144.19,144.15,19.50860754]
[1750341007018,19.50860754,144.18,144.14,24.28194809]
[1750341007227,19.50860754,144.17,144.14,24.28194809]
[1750341007627,19.50860754,144.18,144.14,24.28194809]
[1750341007806,19.50860754,144.18,144.14,43.79055563]
[1750341008509,19.50860754,144.18,144.14,17.34424864]
[1750341009025,1.5744,144.22,144.13,13.4781808]
[1750341009026,19.50860754,144.15,144.13,13.4781808]
[1750341009545,19.50860754,144.15,144.13,30.82363282]
[1750341009712,19.50860754,144.16,144.13,30.82363282]
[1750341010033,19.50860754,144.14,144.13,6.9381808]
[1750341010604,19.50860754,144.14,144.1,6.93962526]
[1750341010832,19.50860754,144.12,144.1,6.93962526]
[1750341011205,19.50860754,144.11,144.1,6.93962526]
[1750341011629,26.0,144.14,144.1,6.93962526]
[1750341011840,19.50860754,144.11,144.1,6.93962526]
[1750341013120,26.0,144.14,144.1,6.93962526]
[1750341013420,19.50860754,144.15,144.1,24.28868841]
[1750341013622,51.73160754,144.18,144.1,43.79729595]
[1750341013803,19.50860754,144.14,144.1,24.28868841]
[1750341014007,19.50860754,144.12,144.1,24.28868841]
[1750341014338,19.50860754,144.11,144.1,6.93962526]
[1750341014833,26.0,144.17,144.1,6.93962526]
[1750341015051,26.0,144.15,144.1,6.93962526]
[1750341015212,19.50860754,144.14,144.1,43.79729595]
[1750341015520,19.50860754,144.13,144.1,24.28868841]
[1750341015734,19.50860754,144.11,144.1,6.93962526]
[1750341016042,27.5893,144.15,144.1,6.93962526]
[1750341016212,19.50860754,144.11,144.08,6.94058856]
[1750341016416,19.50860754,144.09,144.08,6.94058856]
[1750341016811,26.0,144.14,144.08,6.94058856]
[1750341017019,19.50860754,144.11,144.08,24.29205996]
[1750341017232,19.50860754,144.1,144.08,17.3514714]
[1750341017633,19.50860754,144.09,144.07,6.94107031]
[1750341019014,19.50860754,144.1,144.06,43.80403999]
[1750341019226,19.50860754,144.1,144.06,24.29543245]
[1750341020107,1.5893,144.15,144.06,24.29543245]
[1750341020307,19.50860754,144.11,144.07,19.50860754]
[1750341020539,19.50860754,144.13,144.07,18.64964886]
[1750341020945,6.223,144.18,144.11,24.28700297]
[1750341021143,19.50860754,144.15,144.11,24.28700297]
[1750341021318,19.50860754,144.15,144.11,43.79561051]
[1750341021520,19.50860754,144.14,144.11,24.28700297]
[1750341022339,19.50860754,144.15,144.11,43.79561051]
[1750341022923,19.50860754,144.15,144.1,26.0]
[1750341023240,19.50860754,144.15,144.11,19.50860754]
[1750341023818,19.50860754,144.16,144.12,19.50860754]
[1750341024023,19.50860754,144.15,144.11,19.50860754]
[1750341024238,19.50860754,144.14,144.1,27.5782]
[1750341024449,19.50860754,144.14,144.1,47.08680754]
[1750341024754,6.223,144.18,144.11,19.50860754]
[1750341024927,19.50860754,144.18,144.15,24.2802636]
[1750341025132,19.50860754,144.19,144.15,24.2802636]
[1750341025335,19.50860754,144.18,144.15,24.2802636]
[1750341025850,6.0743,144.21,144.15,24.2802636]
[1750341026046,19.50860754,144.2,144.16,19.50860754]
[1750341026427,1.6342,144.23,144.15,43.78887114]
[1750341026625,19.50860754,144.19,144.15,24.2802636]
[1750341026847,19.50860754,144.19,144.15,43.78887114]
[1750341027048,19.50860754,144.2,144.16,19.50860754]
[1750341027223,19.50860754,144.2,144.17,6.9362558]
[1750341028241,19.50860754,144.21,144.17,43.78550286]
[1750341028549,19.50860754,144.22,144.18,19.50860754]
[1750341028862,1.5427,144.27,144.21,19.50860754]
[1750341029031,19.50860754,144.26,144.22,19.50860754]
[1750341029350,19.50860754,144.26,144.23,6.93337031]
[1750341029737,19.50860754,144.25,144.23,24.26679608]
[1750341029939,32.2073,144.29,144.23,24.26679608]
[1750341029940,19.50860754,144.26,144.23,24.26679608]
[1750341030160,6.2073,144.29,144.23,6.93337031]
[1750341030533,19.50860754,144.26,144.23,24.26679608]
[1750341030729,19.50860754,144.27,144.23,43.77540362]
[1750341030958,6.6126,144.33,144.25,19.50860754]
[1750341031150,19.50860754,144.26,144.24,6.93288962]
[1750341032069,19.50860754,144.27,144.24,24.26511369]
[1750341033134,19.50860754,144.26,144.24,24.26511369]
[1750341033665,26.0,144.29,144.24,24.26511369]
[1750341033837,19.50860754,144.26,144.24,6.93288962]
[1750341034757,16.86955038,144.26,144.24,6.93288962]
[1750341034971,26.0,144.3,144.24,6.93288962]
[1750341035136,19.50860754,144.25,144.24,6.93288962]
[1750341035337,19.50860754,144.25,144.23,6.93319507]
[1750341035546,19.50860754,144.24,144.21,6.93433187]
[1750341035756,6.2636,144.26,144.19,6.9352937]
[1750341035974,19.50860754,144.21,144.19,6.9352937]
[1750341036345,19.50860754,144.2,144.19,6.9352937]
[1750341036666,19.50860754,144.21,144.19,6.9352937]
[1750341036855,19.50860754,144.22,144.19,24.27352797]
[1750341037434,19.50860754,144.23,144.19,43.78213551]
[1750341038677,26.0,144.27,144.21,19.50860754]
[1750341038678,19.50860754,144.25,144.21,19.50860754]
[1750341038843,19.50860754,144.24,144.2,19.50860754]
[1750341039465,19.50860754,144.25,144.21,43.7787691]
[1750341039669,19.50860754,144.25,144.21,24.27016156]
[1750341039870,19.50860754,144.25,144.21,43.7787691]
[1750341040351,19.50860754,144.25,144.21,24.27016156]
[1750341040546,26.0,144.27,144.21,43.7787691]
[1750341040771,19.50860754,144.25,144.21,43.7787691]
[1750341041252,19.50860754,144.24,144.21,24.27016156]
[1750341042243,26.0,144.27,144.21,43.7787691]
[1750341042454,19.50860754,144.25,144.21,43.7787691]
[1750341042949,6.6436,144.29,144.21,43.7787691]
[1750341043156,19.50860754,144.25,144.21,43.7787691]
[1750341043467,19.50860754,144.28,144.24,19.50860754]
[1750341043669,19.50860754,144.28,144.22,18.64964886]
[1750341043968,26.0,144.32,144.24,24.26511369]
[1750341044169,19.50860754,144.29,144.25,19.50860754]
[1750341044780,19.50860754,144.31,144.27,19.50860754]
[1750341044968,29.18,144.35,144.28,19.50860754]
[1750341045184,19.50860754,144.32,144.28,19.50860754]
[1750341045485,19.50860754,144.31,144.27,19.50860754]
[1750341045795,29.18,144.35,144.27,19.50860754]
[1750341046082,19.50860754,144.31,144.28,6.93096756]
[1750341046260,36.1076861,144.35,144.28,6.93096756]
[1750341046261,19.50860754,144.29,144.28,6.93096756]
[1750341046781,19.50860754,144.29,144.26,6.93192846]
[1750341047085,19.50860754,144.27,144.26,6.93192846]
[1750341047561,19.50860754,144.27,144.24,6.93288962]
[1750341047757,6.1462,144.3,144.24,6.93288962]
[1750341047758,19.50860754,144.25,144.24,6.93288962]
[1750341047972,6.1462,144.3,144.23,24.26673848]
[1750341048393,19.50860754,144.26,144.23,24.26673848]
[1750341049073,6.1462,144.3,144.23,24.26673848]
[1750341049254,19.50860754,144.26,144.23,24.26673848]
[1750341049877,19.50860754,144.28,144.23,43.77534602]
[1750341050089,19.50860754,144.28,144.24,19.50860754]
[1750341050782,19.50860754,144.25,144.23,24.26673848]
[1750341051159,19.50860754,144.26,144.23,24.26673848]
[1750341051566,67.59,144.33,144.23,24.26673848]
[1750341051767,19.50860754,144.25,144.23,24.26673848]
[1750341051971,19.50860754,144.26,144.23,24.26673848]
[1750341052869,19.50860754,144.25,144.23,24.26673848]
[1750341053482,19.50860754,144.24,144.23,6.93337031]
[1750341054969,26.0,144.27,144.23,6.93337031]
[1750341055174,19.50860754,144.24,144.23,6.93337031]
[1750341055378,19.50860754,144.24,144.22,13.51366625]
[1750341055690,19.50860754,144.23,144.22,6.93366625]
[1750341056378,32.5315,144.27,144.19,36.84678646]
[1750341056568,32.5315,144.27,144.2,19.50860754]
[1750341056569,19.50860754,144.24,144.2,19.50860754]
[1750341056769,19.50860754,144.23,144.19,36.84678646]
[1750341057865,19.50860754,144.22,144.19,17.33817892]
[1750341058979,19.50860754,144.23,144.19,36.84678646]
[1750341060295,32.5315,144.27,144.19,36.84678646]
[1750341060600,19.50860754,144.22,144.19,24.27347262]
[1750341061102,19.50860754,144.21,144.19,24.27347262]
[1750341061999,19.50860754,144.2,144.18,6.93577472]
[1750341062173,19.50860754,144.19,144.18,6.93577472]
[1750341062380,19.50860754,144.19,144.17,13.51617013]
[1750341062580,19.50860754,144.18,144.17,6.93617013]
[1750341062813,19.50860754,144.18,144.16,35.08780799]
[1750341062989,19.50860754,144.17,144.16,35.08780799]
[1750341064003,19.50860754,144.18,144.16,35.08780799]
[1750341064518,26.04010754,144.27,144.17,38.1582564]
[1750341064812,6.5315,144.27,144.22,19.50860754]
[1750341065117,19.50860754,144.28,144.24,19.50860754]
[1750341065284,19.50860754,144.27,144.23,19.50860754]
[1750341066022,19.50860754,144.26,144.24,6.93288962]
[1750341066180,26.0,144.28,144.24,6.93288962]
[1750341066383,19.50860754,144.26,144.24,6.93288962]
[1750341067077,19.50860754,144.25,144.24,6.93288962]
[1750341067506,19.50860754,144.27,144.23,36.84146266]
[1750341067829,19.50860754,144.27,144.23,17.33285512]
[1750341068034,19.50860754,144.27,144.23,36.84146266]
[1750341069019,19.50860754,144.26,144.23,17.33285512]
[1750341069197,19.50860754,144.25,144.23,17.33285512]
[1750341069601,19.50860754,144.27,144.23,17.33285512]
[1750341070215,19.50860754,144.27,144.23,36.84146266]
[1750341070606,19.50860754,144.27,144.23,17.33285512]
[1750341071041,19.50860754,144.26,144.23,17.33285512]
[1750341071625,19.50860754,144.26,144.23,24.26622543]
[1750341073029,19.50860754,144.25,144.23,24.26622543]
[1750341073722,26.0,144.3,144.23,17.33285512]
[1750341074028,19.50860754,144.27,144.23,36.84146266]
[1750341074323,19.50860754,144.24,144.22,6.93385106]
[1750341074504,26.0,144.27,144.22,43.77708625]
[1750341074704,19.50860754,144.25,144.22,24.26847871]
[1750341075017,26.0,144.3,144.22,24.26847871]
[1750341075220,19.50860754,144.25,144.22,24.26847871]
[1750341075421,26.0,144.28,144.22,24.26847871]
[1750341075622,19.50860754,144.25,144.22,24.26847871]
[1750341076225,19.50860754,144.27,144.22,43.77708625]
[1750341076403,19.50860754,144.26,144.22,24.26847871]
[1750341076607,26.0,144.28,144.22,43.77708625]
[1750341076927,19.50860754,144.24,144.22,24.26847871]
[1750341077124,19.50860754,144.23,144.22,24.26847871]
[1750341077310,19.50860754,144.23,144.22,6.93385106]
[1750341077710,8.47786147,144.29,144.2,24.27183128]
[1750341077914,1.5472,144.29,144.2,43.78043882]
[1750341078113,19.50860754,144.25,144.21,19.50860754]